bitfinex-derivatives/quotes_BNBF0:USTF0_20250305
["timestamp","ask_amount","ask_price","bid_price","bid_amount"]
[1741201930451,2.18769005,596.09,595.24,0.33599892]
[1741201930647,1.23495585,596.09,595.24,0.33599892]
[1741201931357,0.77,596.12,595.24,0.33599892]
[1741201945963,0.29226137,596.11,595.24,0.33599892]
[1741201947567,0.77,596.12,595.24,0.33599892]
[1741201947970,0.60067316,596.11,595.24,0.33599892]
[1741201948170,0.29220861,596.11,595.24,0.33599892]
[1741201948968,2.7704848,596.11,595.24,0.33599892]
[1741201949474,1.23495585,596.1,595.24,0.33599892]
[1741201949773,3.71323204,596.1,595.24,0.33599892]
[1741201950563,0.95318315,596.09,595.24,0.33599892]
[1741201950765,1.23495585,596.09,595.24,0.33599892]
[1741201951269,0.77,596.12,595.24,0.33599892]
[1741201953871,1.06214851,596.12,595.24,0.33599892]
[1741201956779,0.77,596.12,595.24,0.33599892]
[1741201957071,1.06214851,596.12,595.24,0.33599892]
[1741201958075,3.54096672,596.12,595.24,0.33599892]
[1741201958271,4.93427683,596.12,595.24,0.33599892]
[1741201958476,0.95339162,596.11,595.24,0.33599892]
[1741201958878,2.18846207,596.3,595.24,0.33599892]
[1741201959078,0.30842186,596.29,595.24,0.33599892]
[1741201959281,2.49688393,596.29,595.24,0.33599892]
[1741201959877,1.24560936,596.28,595.24,0.33599892]
[1741201960081,4.00617516,596.28,595.24,0.33599892]
[1741201960281,2.47911617,596.27,595.24,0.33599892]
[1741201960482,1.23495585,596.26,595.24,0.33599892]
[1741201960982,0.30842186,596.25,595.24,0.33599892]
[1741201961182,1.54337771,596.25,595.24,0.33599892]
[1741201961483,1.21142186,596.24,595.24,0.33599892]
[1741201961688,1.54337771,596.23,595.24,0.33599892]
[1741201961989,0.30842186,596.22,595.24,0.33599892]
[1741201962386,1.23495585,596.22,595.24,0.33599892]
[1741201963087,1.23495585,596.21,595.24,0.33599892]
[1741201963687,1.23495585,596.2,595.24,0.33599892]
[1741201964687,1.23495585,596.19,595.24,0.33599892]
[1741201965187,1.23495585,596.18,595.24,0.33599892]
[1741201966183,1.23495585,596.17,595.24,0.33599892]
[1741201966589,1.23495585,596.16,595.24,0.33599892]
[1741201967389,1.23495585,596.15,595.24,0.33599892]
[1741201967890,1.23495585,596.14,595.24,0.33599892]
[1741201968491,1.23495585,596.13,595.24,0.33599892]
[1741201969087,1.23495585,596.12,595.24,0.33599892]
[1741201969290,2.7605658,596.12,595.24,0.33599892]
[1741201969489,0.95350622,596.11,595.24,0.33599892]
[1741201969689,1.23495585,596.11,595.24,0.33599892]
[1741201970390,1.23495585,596.1,595.24,0.33599892]
[1741201970992,1.23495585,596.09,595.24,0.33599892]
[1741201971692,2.19081654,596.09,595.24,0.33599892]
[1741201971891,0.95586069,596.08,595.24,0.33599892]
[1741201972088,1.23495585,596.09,595.24,0.33599892]
[1741201972291,1.23495585,596.08,595.24,0.33599892]
[1741201972986,1.23495585,596.07,595.24,0.33599892]
[1741201973596,1.23495585,596.06,595.24,0.33599892]
[1741201974185,0.95589818,596.1,595.24,0.33599892]
[1741201974792,1.23495585,596.09,595.24,0.33599892]
[1741201975288,1.23495585,596.08,595.24,0.33599892]
[1741201975789,1.23495585,596.07,595.24,0.33599892]
[1741201976386,1.23495585,596.16,595.24,0.33599892]
[1741201976593,2.19085403,596.16,595.24,0.33599892]
[1741201976792,0.95589818,596.15,595.24,0.33599892]
[1741201976988,1.23495585,596.15,595.24,0.33599892]
[1741201977593,1.23495585,596.14,595.24,0.33599892]
[1741201978495,1.23495585,596.13,595.24,0.33599892]
[1741201978996,1.23495585,596.12,595.24,0.33599892]
[1741201981799,1.23495585,596.11,595.24,0.33599892]
[1741201982596,1.23495585,596.1,595.24,0.33599892]
[1741201982992,1.23495585,596.09,595.24,0.33599892]
[1741201983695,1.23495585,596.08,595.24,0.33599892]
[1741201983895,3.72064764,596.08,595.24,0.33599892]
[1741201984098,2.48569179,596.07,595.24,0.33599892]
[1741201984399,2.19099115,596.07,595.24,0.33599892]
[1741201984600,2.19099115,596.06,595.24,0.33599892]
[1741201984800,0.9560353,596.05,595.24,0.33599892]
[1741201985001,1.23495585,596.06,595.24,0.33599892]
[1741201985201,1.23495585,596.05,595.24,0.33599892]
[1741201985706,1.23495585,596.04,595.24,0.33599892]
[1741201986201,2.19099115,596.09,595.24,0.33599892]
[1741201986397,0.9560353,596.08,595.24,0.33599892]
[1741201986602,1.23495585,596.07,595.24,0.33599892]
[1741201987499,1.23495585,596.06,595.24,0.33599892]
[1741201987899,2.19099115,596.14,595.24,0.33599892]
[1741201988104,0.9560353,596.13,595.24,0.33599892]
[1741201988501,1.23495585,596.14,595.24,0.33599892]
[1741201988702,1.23495585,596.13,595.24,0.33599892]
[1741201989300,1.23495585,596.14,595.24,0.33599892]
[1741201989904,1.23495585,596.13,595.24,0.33599892]
[1741201990303,0.95672179,596.17,595.24,0.33599892]
[1741201991207,1.23495585,596.16,595.24,0.33599892]
[1741201991505,2.19167764,596.16,595.24,0.33599892]
[1741201991707,0.95672179,596.15,595.24,0.33599892]
[1741201991904,1.23495585,596.21,595.24,0.33599892]
[1741201992607,1.23495585,596.2,595.24,0.33599892]
[1741201993108,1.23495585,596.19,595.24,0.33599892]
[1741201993704,0.95672179,596.2,595.24,0.33599892]
[1741201993904,1.23495585,596.21,595.24,0.33599892]
[1741201994209,2.19167764,596.22,595.24,0.33599892]
[1741201994402,0.95672179,596.21,595.24,0.33599892]
[1741201994605,1.23495585,596.22,595.24,0.33599892]
[1741201995201,3.72104274,596.22,595.24,0.33599892]
[1741201995524,2.19167764,596.21,595.24,0.33599892]
[1741201995703,0.95672179,596.2,595.24,0.33599892]
[1741201996304,0.95672179,596.21,595.24,0.33599892]
[1741201996808,2.19167764,596.21,595.24,0.33599892]
[1741201997006,0.95562616,596.2,595.24,0.33599892]
[1741201997205,1.23495585,596.21,595.24,0.33599892]
[1741201997611,0.95562616,596.22,595.24,0.33599892]
[1741201998505,1.23495585,596.33,595.24,0.33599892]
[1741201998506,2.48438868,596.32,595.24,0.33599892]
[1741201998709,2.48438868,596.31,595.24,0.33599892]
[1741201998910,2.48438868,596.3,595.24,0.33599892]
[1741201999106,2.48438868,596.29,595.24,0.33599892]
[1741201999312,2.48438868,596.28,595.24,0.33599892]
[1741202000007,3.21088521,596.27,595.24,0.33599892]
[1741202000207,2.48438868,596.26,595.24,0.33599892]
[1741202000607,3.21088521,596.25,595.24,0.33599892]
[1741202000806,1.85862616,596.24,595.24,0.33599892]
[1741202001206,0.903,596.24,595.24,0.33599892]
[1741202006616,0.29206637,596.38,595.24,0.33599892]
[1741202006818,1.23495585,596.37,595.24,0.33599892]
[1741202007318,1.23495585,596.36,595.24,0.33599892]
[1741202007717,1.23495585,596.35,595.24,0.33599892]
[1741202008122,1.23495585,596.34,595.24,0.33599892]
[1741202008926,1.23495585,596.33,595.24,0.33599892]
[1741202009421,2.18975302,596.33,595.24,0.33599892]
[1741202009624,2.18975302,596.32,595.24,0.33599892]
[1741202009820,0.95479717,596.31,595.24,0.33599892]
[1741202010018,2.18975302,596.32,595.24,0.33599892]
[1741202010817,1.23495585,596.31,595.24,0.33599892]
[1741202011526,1.23495585,596.3,595.24,0.33599892]
[1741202012424,1.23495585,596.29,595.24,0.33599892]
[1741202012819,1.23495585,596.31,595.24,0.33599892]
[1741202013423,1.23495585,596.3,595.24,0.33599892]
[1741202014122,0.95479717,596.32,595.24,0.33599892]
[1741202014123,1.23495585,596.31,595.24,0.33599892]
[1741202015025,2.48247264,596.32,595.24,0.33599892]
[1741202015026,1.23495585,596.3,595.24,0.33599892]
[1741202015822,1.23495585,596.29,595.24,0.33599892]
[1741202016422,1.23495585,596.3,595.24,0.33599892]
[1741202017026,1.23495585,596.29,595.24,0.33599892]
[1741202018128,1.23495585,596.28,595.24,0.33599892]
[1741202018726,1.23495585,596.27,595.24,0.33599892]
[1741202019623,2.18967832,596.26,595.24,0.33599892]
[1741202019825,0.95472247,596.25,595.24,0.33599892]
[1741202020226,1.23495585,596.24,595.24,0.33599892]
[1741202020826,1.23495585,596.23,595.24,0.33599892]
[1741202021427,1.23495585,596.22,595.24,0.33599892]
[1741202021628,2.18967832,596.22,595.24,0.33599892]
[1741202021929,0.95472247,596.21,595.24,0.33599892]
[1741202022125,2.18967832,596.21,595.24,0.33599892]
[1741202022329,0.95472247,596.2,595.24,0.33599892]
[1741202022625,1.23495585,596.21,595.24,0.33599892]
[1741202023030,0.28434579,596.19,595.24,0.33599892]
[1741202024132,1.23495585,596.18,595.24,0.33599892]
[1741202024632,0.28434579,596.19,595.24,0.33599892]
[1741202024633,1.23495585,596.17,595.24,0.33599892]
[1741202025032,1.23495585,596.16,595.24,0.33599892]
[1741202025732,1.23495585,596.15,595.24,0.33599892]
[1741202026331,1.23495585,596.14,595.24,0.33599892]
[1741202026927,1.23495585,596.13,595.24,0.33599892]
[1741202027633,1.23495585,596.12,595.24,0.33599892]
[1741202028333,1.23495585,596.11,595.24,0.33599892]
[1741202028736,1.23495585,596.1,595.24,0.33599892]
[1741202029134,1.23495585,596.09,595.24,0.33599892]
[1741202029633,1.23495585,596.08,595.24,0.33599892]
[1741202030038,0.28434579,596.19,595.24,0.33599892]
[1741202030039,2.19045478,596.15,595.24,0.33599892]
[1741202030239,0.95549893,596.14,595.24,0.33599892]
[1741202030431,1.23495585,596.13,595.24,0.33599892]
[1741202031536,1.23495585,596.12,595.24,0.33599892]
[1741202031932,1.23495585,596.11,595.24,0.33599892]
[1741202032530,1.23495585,596.1,595.24,0.33599892]
[1741202033236,1.23495585,596.09,595.24,0.33599892]
[1741202033736,1.23495585,596.16,595.24,0.33599892]
[1741202033937,2.19045478,596.16,595.24,0.33599892]
[1741202034137,0.95549893,596.15,595.24,0.33599892]
[1741202034332,1.23495585,596.16,595.24,0.33599892]
[1741202034537,1.23495585,596.14,595.24,0.33599892]
[1741202034939,1.23495585,596.13,595.24,0.33599892]
[1741202035632,1.23495585,596.12,595.24,0.33599892]
[1741202036237,1.23495585,596.11,595.24,0.33599892]
[1741202037039,1.23495585,596.1,595.24,0.33599892]
[1741202037539,0.95537916,596.11,595.24,0.33599892]
[1741202038334,0.95537916,596.15,595.24,0.33599892]
[1741202038537,1.23495585,596.16,595.24,0.33599892]
[1741202038740,1.23495585,596.14,595.24,0.33599892]
[1741202038944,1.23495585,596.13,595.24,0.33599892]
[1741202039538,1.23495585,596.12,595.24,0.33599892]
[1741202040334,1.23495585,596.11,595.24,0.33599892]
[1741202040935,1.23495585,596.1,595.24,0.33599892]
[1741202041140,1.23495585,596.1,595.24,0.32605661]
[1741202041339,2.19033501,596.14,595.24,0.32605661]
[1741202041538,0.95537916,596.13,595.24,0.32605661]
[1741202041742,1.23495585,596.14,595.24,0.32605661]
[1741202041937,1.23495585,596.12,595.24,0.32605661]
[1741202042746,1.23495585,596.23,595.24,0.32605661]
[1741202042944,2.19033501,596.23,595.24,0.32605661]
[1741202043143,0.95537916,596.22,595.24,0.32605661]
[1741202043342,1.52860666,596.31,595.24,0.32605661]
[1741202043343,1.23495585,596.3,595.24,0.32605661]
[1741202044047,1.23495585,596.29,595.24,0.32605661]
[1741202044644,1.23495585,596.28,595.24,0.32605661]
[1741202045351,1.23495585,596.27,595.24,0.32605661]
[1741202046352,1.23495585,596.3,595.24,0.32605661]
[1741202046751,1.23495585,596.29,595.24,0.32605661]
[1741202047449,1.23495585,596.28,595.24,0.32605661]
[1741202047751,1.23495585,596.3,595.24,0.32605661]
[1741202048550,1.23495585,596.29,595.24,0.32605661]
[1741202049352,0.95508308,596.3,595.24,0.32605661]
[1741202049551,1.23495585,596.31,595.24,0.32605661]
[1741202050253,2.76282228,596.48,595.24,0.32605661]
[1741202050449,2.4826894,596.47,595.24,0.32605661]
[1741202050752,2.4826894,596.46,595.24,0.32605661]
[1741202050952,0.95482297,596.45,595.24,0.32605661]
[1741202051347,2.4826894,596.46,595.24,0.32605661]
[1741202051552,1.23495585,596.44,595.24,0.32605661]
[1741202051852,3.71764525,596.44,595.24,0.32605661]
[1741202052052,2.4826894,596.43,595.24,0.32605661]
[1741202052254,1.23495585,596.32,595.24,0.32605661]
[1741202052852,2.4826894,596.4,595.24,0.32605661]
[1741202053247,5.69309666,596.39,595.24,0.32605661]
[1741202053453,2.48221145,596.38,595.24,0.32605661]
[1741202054152,3.21088521,596.37,595.24,0.32605661]
[1741202054355,2.48221145,596.36,595.24,0.32605661]
[1741202054751,3.21088521,596.35,595.24,0.32605661]
[1741202054951,0.95469671,596.34,595.24,0.32605661]
[1741202055555,2.48194847,596.48,595.24,0.32605661]
[1741202056350,3.21088521,596.47,595.24,0.32605661]
[1741202056554,2.48194847,596.46,595.24,0.32605661]
[1741202056756,3.71690432,596.46,595.24,0.32605661]
[1741202056954,0.95469671,596.45,595.24,0.32605661]
[1741202057751,2.48125432,596.48,595.24,0.32605661]
[1741202057949,0.95469671,596.48,595.24,0.32605661]
[1741202058149,2.48125432,596.48,595.24,0.32605661]
[1741202058350,3.71621017,596.48,595.24,0.32605661]
[1741202058653,5.69213953,596.47,595.24,0.32605661]
[1741202058850,2.48125432,596.46,595.24,0.32605661]
[1741202059053,0.95469671,596.46,595.24,0.32605661]
[1741202059250,3.21088521,596.45,595.24,0.32605661]
[1741202059449,0.95469671,596.44,595.24,0.32605661]
[1741202060054,2.48070333,596.48,595.24,0.32605661]
[1741202060255,3.21088521,596.47,595.24,0.32605661]
[1741202060451,0.95469671,596.46,595.24,0.32605661]
[1741202060858,2.48045208,596.48,595.24,0.32605661]
[1741202061061,4.16558192,596.47,595.24,0.32605661]
[1741202061259,0.95469671,596.46,595.24,0.32605661]
[1741202061858,0.95469671,596.48,595.24,0.32605661]
[1741202062458,1.23495585,596.49,595.24,0.32605661]
[1741202062858,0.33528918,596.5,595.24,0.32605661]
[1741202090475,3.54617439,596.5,595.24,0.32605661]
[1741202090675,2.47089949,596.49,595.24,0.32605661]
[1741202091874,3.21088521,596.48,595.24,0.32605661]
[1741202092075,0.29208721,596.32,595.24,0.32605661]
[1741202092875,0.33539601,596.31,595.24,0.32605661]
[1741202095178,0.29210559,596.3,595.24,0.32605661]
[1741202095374,0.62750723,596.3,595.24,0.32605661]
[1741202095581,0.998,596.29,595.24,0.32605661]
[1741202098181,0.29209211,596.28,595.24,0.32605661]
[1741202098777,3.50297732,596.28,595.24,0.32605661]
[1741202098980,2.47420885,596.27,595.24,0.32605661]
[1741202099176,1.23495585,596.26,595.24,0.32605661]
[1741202101080,0.29209579,596.25,595.24,0.32605661]
[1741202101980,1.23495585,596.26,595.24,0.32605661]
[1741202103179,2.18695539,596.26,595.24,0.32605661]
[1741202103478,0.95199954,596.25,595.24,0.32605661]
[1741202103672,2.18695539,596.26,595.24,0.32605661]
[1741202103876,0.95199954,596.25,595.24,0.32605661]
[1741202104074,1.23495585,596.26,595.24,0.32605661]
[1741202105085,2.23295585,596.29,595.24,0.32605661]
[1741202105278,0.95187857,596.28,595.24,0.32605661]
[1741202105676,0.998,596.29,595.24,0.32605661]
[1741202105879,2.23295585,596.29,595.24,0.32605661]
[1741202106082,0.95187857,596.28,595.24,0.32605661]
[1741202108779,0.30840648,596.27,595.24,0.32605661]
[1741202109183,1.54336233,596.27,595.24,0.32605661]
[1741202109384,0.30840648,596.26,595.24,0.32605661]
[1741202109781,1.54336233,596.26,595.24,0.32605661]
[1741202109981,0.29210682,596.25,595.24,0.32605661]
[1741202110381,0.30840648,596.24,595.24,0.32605661]
[1741202110679,0.29210682,596.25,595.24,0.32605661]
[1741202110882,1.24398539,596.25,595.24,0.32605661]
[1741202111080,0.29210682,596.25,595.24,0.32605661]
[1741202111885,0.95136122,596.5,595.24,0.32605661]
[1741202112087,0.95136122,596.49,595.24,0.32605661]
[1741202112279,0.2920676,596.35,595.24,0.32605661]
[1741202112881,2.47330246,596.47,595.24,0.32605661]
[1741202113080,2.47330246,596.46,595.24,0.32605661]
[1741202113284,2.47330246,596.45,595.24,0.32605661]
[1741202113582,2.47330246,596.44,595.24,0.32605661]
[1741202113787,2.47330246,596.43,595.24,0.32605661]
[1741202113988,0.29214483,596.35,595.24,0.32605661]
[1741202115789,3.21088521,596.38,595.24,0.32605661]
[1741202116789,0.29207617,596.46,595.24,0.32605661]
[1741202121687,2.47264909,596.54,595.24,0.32605661]
[1741202121886,3.21088521,596.53,595.24,0.32605661]
[1741202122087,0.29204063,596.46,595.24,0.32605661]
[1741202126791,0.973,596.45,595.24,0.32605661]
[1741202131094,1.26502348,596.45,595.24,0.32605661]
[1741202133796,0.973,596.45,595.24,0.32605661]
[1741202134202,1.26502348,596.45,595.24,0.32605661]
[1741202134401,3.74153752,596.45,595.24,0.32605661]
[1741202134699,6.95242273,596.45,595.24,0.32605661]
[1741202134901,2.47651404,596.44,595.24,0.32605661]
[1741202135294,1.23495585,596.43,595.24,0.32605661]
[1741202135500,3.71146989,596.43,595.24,0.32605661]
[1741202136003,1.23495585,596.42,595.24,0.32605661]
[1741202136397,1.23495585,596.41,595.24,0.32605661]
[1741202137603,1.23495585,596.4,595.24,0.32605661]
[1741202137999,0.33535102,596.39,595.24,0.32605661]
[1741202138199,1.57030687,596.39,595.24,0.32605661]
[1741202138402,0.30835106,596.38,595.24,0.32605661]
[1741202138601,0.33536227,596.37,595.24,0.32605661]
[1741202138804,0.30835106,596.36,595.24,0.32605661]
[1741202139003,1.54330691,596.36,595.24,0.32605661]
[1741202139204,0.30835106,596.35,595.24,0.32605661]
[1741202139601,1.26085646,596.35,595.24,0.32605661]
[1741202139803,1.23495585,596.34,595.24,0.32605661]
[1741202140411,1.23495585,596.33,595.24,0.32605661]
[1741202140911,1.23495585,596.32,595.24,0.32605661]
[1741202141111,0.33539601,596.31,595.24,0.32605661]
[1741202141510,1.23495585,596.3,595.24,0.32605661]
[1741202142211,0.33539601,596.31,595.24,0.32605661]
[1741202142811,1.52703202,596.3,595.24,0.32605661]
[1741202143915,0.29207617,596.3,595.24,0.32605661]
[1741202144515,1.52703202,596.3,595.24,0.32605661]
[1741202145120,1.23495585,596.3,595.24,0.32605661]
[1741202146214,0.33539601,596.31,595.24,0.32605661]
[1741202148912,1.23495585,596.3,595.24,0.32605661]
[1741202149318,1.23495585,596.29,595.24,0.32605661]
[1741202150418,2.1889133,596.28,595.24,0.32605661]
[1741202150617,0.95395745,596.27,595.24,0.32605661]
[1741202150810,1.23495585,596.27,595.24,0.32605661]
[1741202151414,2.18928987,596.27,595.24,0.32605661]
[1741202151611,2.18928987,596.26,595.24,0.32605661]
[1741202151813,0.95433402,596.25,595.24,0.32605661]
[1741202152012,1.54337219,596.24,595.24,0.32605661]
[1741202152319,0.30841634,596.23,595.24,0.32605661]
[1741202152720,1.23495585,596.22,595.24,0.32605661]
[1741202152919,0.30841634,596.21,595.24,0.32605661]
[1741202153515,1.23495585,596.2,595.24,0.32605661]
[1741202154324,1.23495585,596.19,595.24,0.32605661]
[1741202155021,1.23495585,596.18,595.24,0.32605661]
[1741202155216,1.52710804,596.18,595.24,0.32605661]
[1741202155523,1.52710804,596.18,595.15,0.29215219]
[1741202155524,0.33547478,596.17,595.15,0.29215219]
[1741202155914,1.23495585,596.16,595.15,0.29215219]
[1741202156118,1.57043625,596.16,595.15,0.29215219]
[1741202157020,1.23495585,596.15,595.15,0.29215219]
[1741202157722,1.23495585,596.15,594.76,1.48921662]
[1741202158023,0.2921988,596.14,595.15,0.2921988]
[1741202158217,0.2921988,596.14,594.78,0.33625878]
[1741202159017,1.52715465,596.14,594.79,0.29223806]
[1741202159222,0.2921988,596.14,594.81,0.33624182]
[1741202162217,0.94,596.13,594.81,0.33624182]
[1741202175726,0.94,596.13,594.94,1.48921662]
[1741202175924,0.94,596.13,594.95,0.3361627]
[1741202178032,0.94,596.13,595.02,1.48921662]
[1741202178230,0.94,596.13,595.03,0.3361175]
[1741202185137,0.29220493,596.12,595.03,0.3361175]
[1741202186330,0.94,596.13,595.03,0.3361175]
[1741202188944,0.29221106,596.12,595.03,0.3361175]
[1741202189137,0.29221106,596.12,595.05,1.48921662]
[1741202190843,0.94,596.13,595.05,1.48921662]
[1741202191838,0.94,596.13,595.03,0.3361175]
[1741202192041,0.29218776,596.12,595.03,0.3361175]
[1741202192843,1.23495585,596.11,595.03,0.3361175]
[1741202193338,1.23495585,596.1,595.03,0.3361175]
[1741202193842,1.23495585,596.09,595.03,0.3361175]
[1741202194746,2.18990715,596.11,595.03,0.3361175]
[1741202194945,0.9549513,596.1,595.03,0.3361175]
[1741202195345,0.9549513,596.09,595.03,0.3361175]
[1741202195545,0.9549513,596.1,595.03,0.3361175]
[1741202195741,2.18990715,596.09,595.03,0.3361175]
[1741202196046,0.9549513,596.08,595.03,0.3361175]
[1741202196243,1.8819513,596.08,595.03,0.3361175]
[1741202196442,1.23495585,596.07,595.03,0.3361175]
[1741202196646,2.18990715,596.07,595.03,0.3361175]
[1741202197348,1.23495585,596.06,595.03,0.3361175]
[1741202197951,0.29222088,596.05,595.03,0.3361175]
[1741202198151,1.52717673,596.05,595.03,0.3361175]
[1741202198951,1.23495585,596.04,595.03,0.3361175]
[1741202199946,1.23495585,596.03,595.03,0.3361175]
[1741202200651,1.23495585,596.02,595.03,0.3361175]
[1741202201754,2.18990715,596.01,595.03,0.3361175]
[1741202201953,0.9549513,596.0,595.03,0.3361175]
[1741202202151,2.18990715,595.99,595.03,0.3361175]
[1741202202352,0.9549513,595.98,595.03,0.3361175]
[1741202202552,0.9549513,595.97,595.03,0.3361175]
[1741202202757,1.23495585,595.97,595.03,0.3361175]
[1741202202949,2.18990715,595.97,595.03,0.3361175]
[1741202203152,1.24719672,595.96,595.03,0.3361175]
[1741202203351,0.29224542,595.96,595.03,0.3361175]
[1741202203852,1.23495585,595.95,595.03,0.3361175]
[1741202204353,0.30858573,595.94,595.03,0.3361175]
[1741202204753,1.57056573,595.93,594.45,1.48921662]
[1741202204951,1.57056573,595.93,594.47,0.33643413]
[1741202204952,0.64420124,595.92,594.47,0.33643413]
[1741202205148,0.64420688,595.91,594.47,0.33643413]
[1741202205349,0.30858573,595.9,594.48,0.29235099]
[1741202205548,0.30857606,595.89,594.5,0.33641715]
[1741202205850,0.30857606,595.88,594.5,0.33641715]
[1741202206150,0.33562115,595.91,594.5,0.33641715]
[1741202206550,2.81849454,595.91,594.5,0.33641715]
[1741202207255,1.23495585,595.9,594.5,1.82563377]
[1741202207450,2.18990715,595.9,594.5,1.82563377]
[1741202207653,0.9549513,595.89,594.5,1.82563377]
[1741202207852,0.33562115,595.91,594.5,1.82563377]
[1741202209258,0.33562115,595.91,594.55,1.48921662]
[1741202209852,0.33562115,595.91,594.57,0.33637755]
[1741202213154,0.29231906,595.9,594.57,0.33637755]
[1741202214862,0.33562115,595.91,594.57,0.33637755]
[1741202219065,0.29232398,595.9,594.57,0.33637755]
[1741202220869,0.33562115,595.91,594.57,0.33637755]
[1741202221072,0.2923117,595.89,594.57,0.33637755]
[1741202223872,0.33562115,595.91,594.57,0.33637755]
[1741202224075,0.2923117,595.88,594.57,0.33637755]
[1741202224479,0.2923117,595.88,594.65,1.48921662]
[1741202224773,0.33562115,595.91,594.66,0.33632664]
[1741202226981,0.33562115,595.91,594.77,1.48921662]
[1741202227183,0.33562115,595.91,594.78,0.33625878]
[1741202228375,0.886,595.9,594.78,0.33625878]
[1741202240884,1.84022683,595.9,594.78,0.33625878]
[1741202242484,1.23495585,595.89,594.78,0.33625878]
[1741202242986,0.2923117,595.88,594.78,0.33625878]
[1741202243290,1.23495585,595.87,594.78,0.33625878]
[1741202243893,1.23495585,595.86,594.78,0.33625878]
[1741202244087,2.18918268,595.86,594.78,0.33625878]
[1741202244288,0.95422683,595.85,594.78,0.33625878]
[1741202244691,1.23495585,595.84,594.78,0.33625878]
[1741202244886,3.71635857,595.84,594.78,0.33625878]
[1741202245082,3.71635857,595.83,594.78,0.33625878]
[1741202245288,2.48140272,595.82,594.78,0.33625878]
[1741202245589,0.95422683,595.82,594.78,0.33625878]
[1741202245785,1.23495585,595.87,594.78,0.33625878]
[1741202246490,1.23495585,595.86,594.78,0.33625878]
[1741202246886,1.23495585,595.85,594.78,0.33625878]
[1741202247292,1.23495585,595.84,594.78,0.33625878]
[1741202248194,1.23495585,595.83,594.78,0.33625878]
[1741202248490,1.23495585,595.82,594.78,0.33625878]
[1741202249095,1.23495585,595.81,594.78,0.33625878]
[1741202249989,1.23495585,595.8,594.78,0.33625878]
[1741202250596,1.23495585,595.79,594.78,0.33625878]
[1741202250987,1.23495585,595.78,594.78,0.33625878]
[1741202251693,1.23495585,595.77,594.78,0.33625878]
[1741202252291,1.23495585,595.76,594.78,0.33625878]
[1741202253196,1.23495585,595.75,594.78,0.33625878]
[1741202253698,1.131,595.74,594.78,0.33625878]
[1741202253997,2.36595585,595.74,594.78,0.33625878]
[1741202254297,0.95621433,595.73,594.78,0.33625878]
[1741202254899,1.23495585,595.72,594.78,0.33625878]
[1741202255299,1.23495585,595.71,594.78,0.33625878]
[1741202256093,0.95618682,595.73,594.78,0.33625878]
[1741202256294,1.131,595.74,594.78,0.33625878]
[1741202257694,6.82803824,595.74,594.78,0.33625878]
[1741202257998,2.48615303,595.73,594.78,0.33625878]
[1741202258204,5.69703824,595.73,594.78,0.33625878]
[1741202258399,2.48615303,595.72,594.78,0.33625878]
[1741202258895,1.23495585,595.71,594.78,0.33625878]
[1741202261897,1.23495585,595.7,594.78,0.33625878]
[1741202262798,1.23495585,595.69,594.78,0.33625878]
[1741202263397,1.23495585,595.68,594.78,0.33625878]
[1741202263903,1.23495585,595.67,594.78,0.33625878]
[1741202264404,1.23495585,595.66,594.78,0.33625878]
[1741202264901,2.48544484,595.68,594.78,0.33625878]
[1741202265105,0.95594032,595.68,594.78,0.33625878]
[1741202265405,1.23495585,595.69,594.78,0.33625878]
[1741202265602,1.23495585,595.67,594.78,0.33625878]
[1741202265803,2.19089617,595.7,594.78,0.33625878]
[1741202266106,0.95594032,595.69,594.78,0.33625878]
[1741202266407,1.23495585,595.7,594.78,0.33625878]
[1741202266606,2.19089617,595.71,594.78,0.33625878]
[1741202266908,0.95594032,595.7,594.78,0.33625878]
[1741202267207,1.52950452,595.72,594.78,0.33625878]
[1741202267208,1.23495585,595.69,594.78,0.33625878]
[1741202267906,2.19089617,595.69,594.78,0.33625878]
[1741202268108,0.95594032,595.68,594.78,0.33625878]
[1741202268302,0.95594032,595.7,594.78,0.33625878]
[1741202269104,1.23495585,595.71,594.78,0.33625878]
[1741202270704,1.131,595.74,594.78,0.33625878]
[1741202280722,0.95542117,595.89,594.78,0.33625878]
[1741202280921,1.23495585,595.9,594.78,0.33625878]
[1741202281720,2.19037702,595.92,594.78,0.33625878]
[1741202281919,1.23495585,595.92,594.78,0.33625878]
[1741202282524,1.23495585,595.97,594.78,0.33625878]
[1741202283327,1.23495585,595.96,594.78,0.33625878]
[1741202283828,1.1,595.9,594.78,0.33625878]
[1741202292039,1.23495585,595.89,594.78,0.33625878]
[1741202292434,1.23495585,595.88,594.78,0.33625878]
[1741202293037,2.05486715,595.9,594.78,0.33625878]
[1741202293543,3.58265459,595.9,594.78,0.33625878]
[1741202293843,1.54353737,595.89,594.78,0.33625878]
[1741202294043,1.54353737,595.88,594.78,0.33625878]
[1741202294344,0.3085933,595.87,594.78,0.33625878]
[1741202294743,1.23495585,595.86,594.78,0.33625878]
[1741202295142,2.189823,595.86,594.78,0.33625878]
[1741202295340,1.26348169,595.85,594.78,0.33625878]
[1741202295643,0.30862177,595.84,594.78,0.33625878]
[1741202295841,1.26348892,595.84,594.78,0.33625878]
[1741202296042,1.54357762,595.83,594.78,0.33625878]
[1741202296245,2.189823,595.83,594.78,0.33625878]
[1741202296442,0.95486715,595.82,594.78,0.33625878]